Cogmind - Beta 13 @@@ ROGUE MODE // 2024.04.04 @ 00:37:15 Player: CocoWaff Result: Destroyed by L-31 Rogue with Katana Performance ------------- Evolutions (0) 0 Regions Visited (4) 800 Robots Destroyed (12) 60 Value Destroyed (204) 204 Prototype IDs (1) 20 Alien Tech Used (0) 0 Bonus (300) 300 TOTAL SCORE: 1384 Bonus ------- Aligned with FarCom 300 Cogmind --------- Core Integrity 0/250 Matter 219/300 Energy 125/125 System Corruption 23% Temperature Cool (0) Movement Flying (120) Ox1 Location -9/Mines Parts ------- > --- POWER (1) -------- Light Ion Engine > --- PROPULSION (2) --- Flight Unit > --- UTILITY (2) ------ (None) > --- WEAPON (2) ------- Assault Rifle > --- INVENTORY (5) ---- Small Storage Unit Small Laser Peak State ------------ > --- POWER ------------ Ion Engine > --- PROPULSION ------- Flight Unit Flight Unit > --- UTILITY ---------- (None) > --- WEAPON ----------- Latent Energy Streamer Light Assault Rifle > --- INVENTORY -------- Light Ion Engine Small Storage Unit Small Laser Assault Rifle [Rating: 14] Favorites ----------- Power Ion Engine Engine Ion Engine Propulsion Flight Unit Wheel Wheel Flight Unit Flight Unit Utility Small Storage Unit Storage Small Storage Unit Weapon Latent Energy Streamer Energy Gun Small Laser Energy Cannon Latent Energy Streamer Ballistic Gun Light Assault Rifle Build | -11 -10 -10 -10 -9 ------- Run | Yrd Mat Min Exi Min Slots Evolved . | . . . . . Power . | . . . . . Propulsion . | . . . . . Utility . | . . . . . Weapon . | . . . . . Parts Attached 15 | 7 . 3 1 4 Power 3 | 2 . . . 1 Engine 3 | 2 . . . 1 Core . | . . . . . Reactor . | . . . . . Propulsion 5 | 2 . 2 . 1 Treads . | . . . . . Leg . | . . . . . Wheel 2 | 2 . . . . Hover . | . . . . . Flight 3 | . . 2 . 1 Utility 1 | 1 . . . . Device . | . . . . . Storage 1 | 1 . . . . Processor . | . . . . . Hackware . | . . . . . Protection . | . . . . . Artifact . | . . . . . Weapon 6 | 2 . 1 1 2 Energy Gun 1 | . . 1 . . Energy Cannon 1 | . . . 1 . Ballistic Gun 4 | 2 . . . 2 Ballistic Cannon . | . . . . . Launcher . | . . . . . Special Weapon . | . . . . . Impact Weapon . | . . . . . Slashing Weapon . | . . . . . Piercing Weapon . | . . . . . Special Melee Weapon . | . . . . . Unidentified Prototypes 1 | . . . 1 . Corrupted Parts 2 | . . . . 2 System Corruption 18 | . . . . 18 Parts Lost 3 | . . . . 3 Power 1 | . . . . 1 Propulsion 1 | . . . . 1 Utility . | . . . . . Weapon 1 | . . . . 1 Highest Loss Streak 2 | . . . . 2 To Critical Strikes . | . . . . . Average Slot Usage (%) 63 | . 85 65 57 65 Engine 13 | . 14 14 14 12 Wheel 3 | . 28 8 . . Flight 23 | . . 19 28 26 Storage 1 | . 14 4 . . Energy Gun 4 | . . 4 8 . Energy Cannon 6 | . . . 5 12 Ballistic Gun 8 | . 28 14 . 12 Naked Turns . | . . . . . Heaviest Build 16 | 13 13 13 15 16 Greatest Support 20 | 20 20 20 8 8 Greatest Overweight (x) 3 | . . 1 1 3 Average Overweight (x) . | . . . . . Largest Inventory Capacity 8 | 8 8 8 5 5 Average Capacity 5 | 6 8 6 5 5 Most Carried 5 | 5 . 3 4 5 Average Carried 2 | 1 . 1 3 3 Final Capacity 8 | 8 8 5 5 5 Final Carried 4 | . . 3 4 2 Class Distribution -------------------- 100% | Mutant Dominant Class ---------------- Mutant | -10/Materials Mutant | -10/Mines Mutant | -10/Exiles Mutant | -9/Mines Resources | -11 -10 -10 -10 -9 ----------- Run | Yrd Mat Min Exi Min Matter Collected 395 | 181 . 143 . 71 Remotely . | . . . . . Salvage Created 312 | . . 143 . 169 Parts 30 | . . 12 . 18 Haulers Intercepted . | . . . . . Recyclers Shooed . | . . . . . Parts Field Recycled . | . . . . . Retrieved Matter . | . . . . . Parts Self-Destructed . | . . . . . Prevented . | . . . . . Kills | -11 -10 -10 -10 -9 ------- Run | Yrd Mat Min Exi Min Combat Hostiles Destroyed 10 | . . 5 . 5 Guns 6 | . . 5 . 1 AOE 4 | . . . . 4 Classes Destroyed 4 | . . 2 . 2 Worker 1 | . . . . 1 Builder 1 | . . . . 1 Swarmer 7 | . . 3 . 4 Grunt 3 | . . 2 . 1 Best Kill Streak 4 | . . 3 . 4 Combat Bots Only 4 | . . 3 . 4 Max Kills in Single Turn 4 | . . 1 . 4 Gunslinging . | . . . . . Exploded 4 | . . . . 4 Melee . | . . . . . Uniques/NPCs Destroyed . | . . . . . Combat | -11 -10 -10 -10 -9 -------- Run | Yrd Mat Min Exi Min Hostile Shots Fired 75 | . . 29 . 46 Missed 22 | . . 6 . 16 Damage Taken 727 | . . 238 . 489 Core 259 | . . 81 . 178 Absorbed by Shields . | . . . . . Core Remaining (%) 100 | 100 . . . . Volleys Fired 50 | . 3 27 . 20 Largest 2 | . 2 2 . 2 Hottest 80 | . 40 40 . 80 Shots Fired 62 | . 6 35 . 21 Gun 60 | . 6 35 . 19 Cannon 2 | . . . . 2 Launcher . | . . . . . Special . | . . . . . Kinetic 55 | . 6 30 . 19 Thermal 5 | . . 5 . . Explosive . | . . . . . Electromagnetic 2 | . . . . 2 Robot Hit Streak 10 | . 2 6 . 10 Robot Miss Streak 2 | . 2 2 . 2 Penetration Max . | . . . . . Secondary Targets 1 | . . 1 . . Max Gunslinging Chain 1 | . . 1 . . Shots Hit Robots 43 | . 3 24 . 16 Core Hits 23 | . 1 9 . 13 Critical Kills 1 | . . 1 . . Critical Parts Destroyed . | . . . . . Critical Strikes 1 | . . 1 . . Destroy 1 | . . 1 . . Melee Attacks . | . . . . . Impact . | . . . . . Slashing . | . . . . . Piercing . | . . . . . Sneak Attacks . | . . . . . Combat Hostiles . | . . . . . Follow-up Attacks . | . . . . . Damage Inflicted 731 | . 30 273 . 428 Guns 440 | . 30 273 . 137 Cannons 7 | . . . . 7 Explosions 284 | . . . . 284 Melee . | . . . . . Ramming . | . . . . . Kinetic 397 | . 30 230 . 137 Thermal 43 | . . 43 . . Explosive . | . . . . . Electromagnetic 291 | . . . . 291 Impact . | . . . . . Slashing . | . . . . . Piercing . | . . . . . Highest Corruption 23 | . . . . 23 Average Corruption 15 | . . . . 15 Corruption Purged . | . . . . . Corruption Blocked . | . . . . . Effects 15 | . . . . 15 Message Errors 2 | . . . . 2 Matter Fused 5 | . . . . 5 Heat Flow Errors 2 | . . . . 2 Energy Discharges 1 | . . . . 1 Alerts 1 | . . . . 1 Misdirections 3 | . . . . 3 Weapon Failures 1 | . . . . 1 Overload Shots . | . . . . . Overflow Damage . | . . . . . Projectiles . | . . . . . Explosions . | . . . . . Melee . | . . . . . Knockbacks . | . . . . . Impact . | . . . . . Kinetic . | . . . . . Secondary . | . . . . . Self-Inflicted Damage 30 | . . . . 30 Shots 1 | . . . . 1 Rammed . | . . . . . Targets Rammed . | . . . . . Kicked . | . . . . . Crushed . | . . . . . Highest Temperature 225 | . . 38 . 225 Average Temperature 92 | . . 20 . 112 Received Heat Transfer 267 | . . 84 . 183 Siege Activations . | . . . . . Robots Corrupted . | . . . . . Combat Hostiles . | . . . . . Parts Fried . | . . . . . Impact Corruptions . | . . . . . Robots Melted . | . . . . . Combat Hostiles . | . . . . . Parts Melted . | . . . . . Heat Transferred 100 | . . 100 . . Parts Sabotaged . | . . . . . Parts Stolen . | . . . . . Parts Stripped . | . . . . . Power Chain Reactions . | . . . . . Latent Energy Used 186 | . . . . 186 LE Corruption 4 | . . . . 4 Alert | -11 -10 -10 -10 -9 ------- Run | Yrd Mat Min Exi Min Peak Influence 140 | . 15 140 . 126 Initial 5 | . . 5 . . Average 76 | . 10 98 . 96 Maximum Alert Level . | . . . . . Low Security (%) 100 | 100 100 100 . 100 Level 1 . | . . . . . Level 2 . | . . . . . Level 3 . | . . . . . Level 4 . | . . . . . Level 5 . | . . . . . High Security . | . . . . . Max Security . | . . . . . Squads Dispatched 1 | . 1 . . . Investigation . | . . . . . Extermination . | . . . . . Reinforcement 1 | . 1 . . . Assault . | . . . . . Garrison . | . . . . . Intercept . | . . . . . Searches Triggered . | . . . . . Construction Impeded . | . . . . . Haulers Reinforced . | . . . . . Active Scanning Responses . | . . . . . Cargo Convoy Interrupts . | . . . . . Stealth | -11 -10 -10 -10 -9 --------- Run | Yrd Mat Min Exi Min Distress Signals . | . . . . . Communications Jammed . | . . . . . Distress Signals . | . . . . . Times Spotted 11 | . 1 4 . 6 Peak Tracking Total 6 | . 1 2 . 6 Tactical Retreats . | . . . . . Traps | -11 -10 -10 -10 -9 ------- Run | Yrd Mat Min Exi Min Traps Triggered . | . . . . . Indirectly . | . . . . . Trap Hack Attempts . | . . . . . Triggered . | . . . . . Disarmed . | . . . . . Reprogrammed . | . . . . . Reused . | . . . . . Traps Extracted . | . . . . . Installed . | . . . . . Triggered . | . . . . . Machines | -11 -10 -10 -10 -9 ---------- Run | Yrd Mat Min Exi Min Machines Disabled . | . . . . . Max in Single Turn . | . . . . . Machines Repaired . | . . . . . Machines Dismantled . | . . . . . Machines Sabotaged . | . . . . . Overloaded Fab Kills . | . . . . . Hacking | -11 -10 -10 -10 -9 --------- Run | Yrd Mat Min Exi Min Machines Accessed 6 | . 2 . 4 . Terminals 2 | . 2 . . . Fabricators . | . . . . . Repair Stations . | . . . . . Recycling Units . | . . . . . Scanalyzers . | . . . . . Garrison Access . | . . . . . Total Hacks 55 | . 6 . 49 . Successful 49 | . . . 49 . Failed 6 | . 6 . . . Catastrophic 3 | . 3 . . . Database Lockouts . | . . . . . Manual 5 | . 3 . 2 . Terminals 6 | . 6 . . . Fabricators . | . . . . . Repair Stations . | . . . . . Recycling Units . | . . . . . Scanalyzers . | . . . . . Garrison Access . | . . . . . Terminal Hacks 49 | . . . 49 . Record 49 | . . . 49 . Fabricator Hacks . | . . . . . Repair Station Hacks . | . . . . . Recycling Unit Hacks . | . . . . . Scanalyzer . | . . . . . Garrison Access Hacks . | . . . . . Unauthorized Hacks . | . . . . . Terminals . | . . . . . Fabricators . | . . . . . Repair Stations . | . . . . . Recycling Units . | . . . . . Scanalyzers . | . . . . . Garrison Access . | . . . . . Data Cores Recovered . | . . . . . Used . | . . . . . Hacking Detections 2 | . 2 . . . Full Trace Events 2 | . 2 . . . Feedback Events . | . . . . . Feedback Blocked . | . . . . . Robot Schematics Acquired . | . . . . . Robots Built . | . . . . . Authchips . | . . . . . Time . | . . . . . Total Robot Build Rating . | . . . . . Part Schematics Acquired . | . . . . . Parts Built . | . . . . . Authchips . | . . . . . Time . | . . . . . Total Part Build Rating . | . . . . . Parts Repaired . | . . . . . Time . | . . . . . Parts Recycled . | . . . . . Recycled Matter . | . . . . . Retrieved Matter . | . . . . . Retrieved Components . | . . . . . Parts Scanalyzed . | . . . . . Part Schematics Acquired . | . . . . . Parts Damaged . | . . . . . Bothacking | -11 -10 -10 -10 -9 ------------ Run | Yrd Mat Min Exi Min Used RIF Installer . | . . . . . Robots Hacked . | . . . . . Non-combat . | . . . . . Combat . | . . . . . Robot Hacks Applied . | . . . . . Relay Couplers Released . | . . . . . Fabnet Peak Effective % . | . . . . . Robots Rewired . | . . . . . Allies Hacked . | . . . . . Hacks Repelled . | . . . . . Allies | -11 -10 -10 -10 -9 -------- Run | Yrd Mat Min Exi Min Total Allies . | . . . . . Largest Group . | . . . . . Highest-Rated Group . | . . . . . Highest-Rated Ally . | . . . . . Total Orders . | . . . . . Ally Attacks . | . . . . . Total Damage . | . . . . . Kills . | . . . . . Allies Corrupted . | . . . . . Allies Melted . | . . . . . Intel | -11 -10 -10 -10 -9 ------- Run | Yrd Mat Min Exi Min Robot Analysis Total . | . . . . . Derelict Logs Recovered . | . . . . . Drone Launches . | . . . . . Drone Recoveries . | . . . . . Exploration | -11 -10 -10 -10 -9 ------------- Run | Yrd Mat Min Exi Min Turns Passed 720 | 38 54 100 306 222 Spaces Moved 901 | 36 57 72 603 133 Core 17 | 17 . . . . Treads . | . . . . . Legs . | . . . . . Wheels 80 | 19 57 4 . . Hover . | . . . . . Flight 804 | . . 68 603 133 Fastest Speed 37 | 50 80 37 37 40 Average Speed 61 | 65 80 41 50 113 Slowest Speed 280 | 80 80 117 117 280 Overloaded Moves . | . . . . . Propulsion Burnouts . | . . . . . Robots Hopped . | . . . . . Cave-ins Triggered . | . . . . . Exploration Rate (%) 31 | 3 11 15 93 36 Regions Visited 4 Branch Regions 3 Pre-discovered Areas 1 | . . . 1 . Known Exits Taken . | . . . . . Unknown Exits Taken 4 | 1 1 1 1 . Scrap Searched . | . . . . . Spaces Dug . | . . . . . Terrain Destroyed 6 | . . . . 6 Melee . | . . . . . Projectile . | . . . . . AOE 6 | . . . . 6 Terrain Rammed . | . . . . . Walls Destroyed . | . . . . . Machines Disabled . | . . . . . Actions | -11 -10 -10 -10 -9 --------- Run | Yrd Mat Min Exi Min Total 1009 | 49 59 109 606 186 Wait 28 | . . 1 . 27 Move 897 | 35 56 71 602 133 Hop . | . . . . . Pick Up 12 | 6 . 3 2 1 Fast Attach 1 | 1 . . . . Attach 10 | 5 . 2 . 3 Detach 2 | . . 2 . . Swap 4 | 1 . 1 1 1 Drop 5 | 1 . 2 1 1 Fire 50 | . 3 27 . 20 Melee . | . . . . . Ram . | . . . . . Kick . | . . . . . Crush . | . . . . . Escape Stasis . | . . . . . Rewire . | . . . . . Trap . | . . . . . Miscellaneous . | . . . . . Route ------- -11/Scrapyard -10/Materials -10/Mines -10/Exiles (discovered 2 exits: [*Min x2]) -9/Mines History --------- Turn | Location | Event 13 | -11/Scrapyard | Discovered new exit (range 15) 39 | -11/Scrapyard | Entered Materials 86 | -10/Materials | Discovered new exit (range 9) 93 | -10/Materials | Entered Mines 188 | -10/Mines | Discovered new exit (range 13) 193 | -10/Mines | Entered Exiles 202 | -10/Exiles | Discovered new exit (range 15) 214 | -10/Exiles | Met 8R-AWN 220 | -10/Exiles | Met EX-HEX 240 | -10/Exiles | Met EX-DEC 248 | -10/Exiles | Learned location of Zion (-7) 264 | -10/Exiles | Discovered new exit (range 14) 293 | -10/Exiles | Visited The Gauntlet 316 | -10/Exiles | Build established: Mutant 353 | -10/Exiles | Met EX-BIN 360 | -10/Exiles | Aligned with FarCom system 360 | -10/Exiles | Given EX-Vault access code 379 | -10/Exiles | Opened EX-Vault 381 | -10/Exiles | Found Prototype Energy Cannon 382 | -10/Exiles | Identified Latent Energy Streamer 410 | -10/Exiles | Warned to stay clear of 0b10 Research branches 499 | -10/Exiles | Left Exiles lab with Latent Energy Streamer 499 | -10/Exiles | Entered Mines 507 | -9/Mines | System corruption reached 10% 639 | -9/Mines | Core integrity fell below 50% 706 | -9/Mines | Core integrity fell below 20% 721 | -9/Mines | Destroyed by L-31 Rogue with Katana Last Messages --------------- K-01 Serf collects debris. System corrupted: Energy discharge (-72). System corrupted: Matter fused (-5). %Z0>Y7MHDOXE#48DHDCDR System corrupted: Matter fused (-6). K-01 Serf destroyed. System corrupted: Latent Energy Streamer failed to cycle. Ion Engine destroyed. System corrupted: Matter fused (-8). Integrated Corrupted Lgt. Ion Engine (+9). System corrupted: Slammed into ceiling. System corrupted: Heat flow error (+235). G-34 Mercenary destroyed. System corrupted: Matter fused (-6). G-47 Trooper destroyed. System corrupted: IFF burst signal emitted. Lgt. Assault Rifle destroyed. Flight Unit destroyed. Latent Energy Streamer severed. Map ----- +----------------------------------------------------+ | | | | | ?????????????????????????????????????????????????? | | ??????##############?????????????????????????????? | | ??????# #?????????????????????????????? | | ??????# #?????????????????????????????? | | ??????# """ """ #?????????????????????????????? | | ??????# """ """ #?????????????????????????????? | | ??????# """ """ #?????????????????????????????? | | ??????# #?????????????????????????????? | | ??????#### #########?????????????????????????????? | | ?????????# #################?????????????????????? | | ?????????# #?????????????????????? | | ?????????# ############### #?????????????????????? | | ?????????# #?????????????# #?????????????????????? | | ????###### ###???????????# #?????????????????????? | | ????# #???????????# #?????????????????????? | | ????# """ #??????????## ###???????????????????? | | ????# """ #??????##### ##??????????????????? | | ????# """ #?????## ###????????????????? | | ????# #?##### ] ##???????????????? | | ????# ### ### ##??????????????? | | ????## ######## ##?## #??????????????? | | ?????# #??????# g##??## #??????????????? | | ?????# ######?## ![* ##### #??????????????? | | ?????# #??# =%### @ ## ##??????????????? | | ?????###### #??#$=##?## l ##??????????????? | | ??????##### ####%!#???#### """ ####????? #???? | | ??????# [= #??????## """ #???## ???? | | ??????# ########%*#???????## """ #??## ???? | | ??????# #??????#% #???????# ### #?## ????? | | ??????# #??????== ??????# ##?? ### ????? | | ?????? ?????? ????# ###????#? ????? | | ??????= ????? ???# ######???? #????? | | ??????%* ????? #??# #????? #????? | | ?????? ????? #??# #### #?????# #????? | | ????? #??? ##??# #??# #?????# #????? | | ????? #??? ###???# #??# #??#### ###??? | | ????? ###??? ##?????# #??# #### # ##?? | | ????? ?????# ###????### #### ## ##? | | ???? ??????# ##????# =#? | | ???? ??????# ??????# ### ==#? | | ????# ??????# ??????????####?## #? | | ????# ???????# #????????????????## ### ##? | | ????? ???????????????????????????## ##?#### #?? | | ???????????????????????????????????####?????# #?? | | ????????????????????????????????????????????# #?? | | ????????????????????????????????????????????# #?? | | ????????????????????????????????????????????# #?? | | ???????????????????????????????????????????? #?? | +----------------------------------------------------+ Best States ------------- Heat Dissipation 25 Energy Generation 10 Energy Capacity 250 Matter Stores 279 Matter Capacity 300 Sight Range 16 Terrain Scan Density 10 Evasion (%) 62 Item Schematics ----------------- None Robot Schematics ------------------ None Fabricated ------------ Nothing Alien Tech Used ----------------- None Achievements -------------- Librarian Tourist Challenges ------------ None Game ------ Seed TiamatNovaImmobilizer Manual? 0 Play Time 00:38:07 Cumulative 2.9 hours Start 2024.04.03 @ 23:42:17 End 2024.04.04 @ 00:37:15 Sessions 2 Manual Loads 0 Difficulty Rogue Special Mode None Game No. 6 Rogue 6 Adventurer 0 Explorer 0 Win Type - Total 0 Types 0/0/0/0/0/0/0/0/0 Lore% 10 Gallery% 6 Achievement% 8 Wizard Run 0 Options --------- Layout 1 ASCII 1 Keyboard 0 Movement Mouse Keybinds 0 Fullscreen 2 Font 24/Smallcaps Map View 50x35 Zoom Use 0% Tactical HUD 0 Map Filters NONE Filters NONE Steam 1 RUN: 5d7cf26d-90fc-4289-8988-5a9b77fa1a17